bitfinex-derivatives/quotes_BNBF0:USTF0_20250807
["timestamp","ask_amount","ask_price","bid_price","bid_amount"]
[1754592396085,0.85802806,776.97,776.45,0.86309724]
[1754592396284,0.86497305,777.06,776.45,0.86309724]
[1754592396483,0.85846476,777.05,776.45,0.86309724]
[1754592396686,0.85846476,777.04,776.45,0.86309724]
[1754592396883,0.85846476,777.03,776.45,0.86309724]
[1754592397087,0.85846476,777.02,776.45,0.86309724]
[1754592397286,0.85846476,777.01,776.46,0.86309724]
[1754592397583,0.85846476,777.0,776.46,0.86309724]
[1754592397884,0.85846476,776.99,776.48,0.86309724]
[1754592398088,0.85846476,776.98,776.48,0.86309724]
[1754592398289,0.85846476,776.97,776.48,0.86309724]
[1754592398588,0.85846476,776.96,776.48,0.86309724]
[1754592398883,0.86497305,777.04,776.48,0.86309724]
[1754592399083,0.85853684,777.03,776.47,0.86309724]
[1754592399284,0.85853684,777.02,776.48,0.86309724]
[1754592399488,0.85853684,777.01,776.48,0.86309724]
[1754592399688,0.85853684,777.0,776.47,0.86309724]
[1754592399888,0.85853684,776.99,776.47,0.86309724]
[1754592400089,0.85853684,776.98,776.47,0.86309724]
[1754592400389,0.85853684,776.97,776.45,0.86309724]
[1754592400591,0.976,777.11,776.54,0.86309724]
[1754592400785,0.85862436,777.1,776.54,0.86309724]
[1754592400987,0.85862436,777.09,776.54,0.86309724]
[1754592401192,0.85862436,777.08,776.54,0.86309724]
[1754592401393,0.85862436,777.07,776.54,0.86309724]
[1754592401593,0.85862436,777.06,776.54,0.86309724]
[1754592401791,0.85862436,777.05,776.54,0.86309724]
[1754592401993,0.85862436,777.04,776.54,0.86309724]
[1754592402293,0.85862436,777.03,776.54,0.86309724]
[1754592402490,0.85862436,777.02,776.54,0.86309724]
[1754592402694,0.976,777.11,776.54,0.86309724]
[1754592403094,0.85866479,777.1,776.54,0.86309724]
[1754592403293,0.85866479,777.09,776.54,0.86309724]
[1754592403495,0.85866479,777.08,776.54,0.86309724]
[1754592403694,0.85866479,777.07,776.54,0.86309724]
[1754592403895,0.85866479,777.06,776.54,0.86309724]
[1754592404195,0.85866479,777.05,776.54,0.86309724]
[1754592404395,0.85866479,777.04,776.54,0.86309724]
[1754592404695,0.976,777.11,776.54,0.86309724]
[1754592404696,0.85866479,777.03,776.54,0.86309724]
[1754592404895,0.976,777.11,776.54,0.86309724]
[1754592405196,0.85870719,777.1,776.54,0.86309724]
[1754592405395,0.85870719,777.09,776.54,0.86309724]
[1754592405696,0.85870719,777.08,776.54,0.86309724]
[1754592405895,0.976,777.11,776.54,0.86309724]
[1754592405896,0.85870719,777.07,776.54,0.86309724]
[1754592406096,0.85870719,777.06,776.55,0.86309724]
[1754592406296,0.85870719,777.05,776.55,0.86309724]
[1754592406493,0.976,777.11,776.55,0.86309724]
[1754592406696,0.85867525,777.1,776.55,0.86309724]
[1754592406896,0.85867525,777.09,776.55,0.86309724]
[1754592407098,0.85867525,777.08,776.55,0.86309724]
[1754592407397,0.85867525,777.07,776.56,0.86309724]
[1754592407597,0.85867525,777.06,776.56,0.86309724]
[1754592407797,0.85867525,777.05,776.56,0.86309724]
[1754592408099,0.85867525,777.04,776.55,0.86309724]
[1754592408298,0.85867525,777.03,776.55,0.86309724]
[1754592408499,0.976,777.11,776.56,0.86309724]
[1754592408699,0.85870438,777.1,776.56,0.86309724]
[1754592408898,0.85870438,777.09,776.56,0.86309724]
[1754592409196,0.85870438,777.08,776.56,0.86309724]
[1754592409400,0.85870438,777.07,776.56,0.86309724]
[1754592409597,0.85870438,777.06,776.56,0.86309724]
[1754592409800,0.85870438,777.05,776.56,0.86309724]
[1754592410104,0.85870438,777.04,776.56,0.86309724]
[1754592410401,0.85870438,777.03,776.58,0.86309724]
[1754592410601,0.85870438,777.02,776.58,0.86309724]
[1754592410897,0.85870438,777.01,776.58,0.86309724]
[1754592411095,0.85870438,777.0,776.58,0.86309724]
[1754592411300,0.86497305,777.09,776.58,0.86309724]
[1754592411498,0.85873411,777.08,776.58,0.86309724]
[1754592411698,0.86497305,777.09,776.58,0.86309724]
[1754592411898,0.85873411,777.08,776.58,0.86309724]
[1754592412198,0.85873411,777.07,776.58,0.86309724]
[1754592412403,0.85873411,777.06,776.49,0.86309724]
[1754592412598,0.976,777.11,776.49,0.86309724]
[1754592412903,0.85874143,777.1,776.49,0.86309724]
[1754592413103,0.85874143,777.09,776.49,0.86309724]
[1754592413299,0.85874143,777.08,776.49,0.86309724]
[1754592413508,0.85874143,777.07,776.49,0.86309724]
[1754592413701,0.85874143,777.06,776.49,0.86309724]
[1754592413900,0.976,777.11,776.49,0.86309724]
[1754592413901,0.85874143,777.05,776.49,0.86309724]
[1754592414212,0.85874143,777.04,776.49,0.86309724]
[1754592414402,0.85874143,777.03,776.49,0.86309724]
[1754592414597,0.85874143,777.02,776.49,0.86309724]
[1754592414799,0.85874143,777.02,776.28,1.1480059]
[1754592414800,0.976,777.11,776.5,0.86309724]
[1754592415002,0.85881907,777.1,776.5,0.86309724]
[1754592415200,0.85881907,777.09,776.5,0.86309724]
[1754592415398,0.85881907,777.08,776.5,0.86309724]
[1754592415604,0.85881907,777.07,776.5,0.86309724]
[1754592415801,0.85881907,777.06,776.5,0.86309724]
[1754592416000,0.85881907,777.05,776.5,0.86309724]
[1754592416202,0.85881907,777.04,776.5,0.86309724]
[1754592416402,0.85881907,777.03,776.5,0.86309724]
[1754592416600,0.85881907,777.02,776.5,0.86309724]
[1754592416800,0.85881907,777.01,776.5,0.86309724]
[1754592417003,0.976,777.11,776.5,0.86309724]
[1754592417201,0.85892456,777.1,776.5,0.86309724]
[1754592417405,0.85892456,777.09,776.5,0.86309724]
[1754592417601,0.85892456,777.08,776.5,0.86309724]
[1754592417803,0.85892456,777.07,776.5,0.86309724]
[1754592418005,0.85892456,777.06,776.5,0.86309724]
[1754592418206,0.85892456,777.05,776.5,0.86309724]
[1754592418404,0.85892456,777.04,776.5,0.86309724]
[1754592418608,0.85892456,777.03,776.5,0.86309724]
[1754592418808,0.85892456,777.02,776.5,0.86309724]
[1754592419008,0.85892456,777.01,776.5,0.86309724]
[1754592419208,0.85892456,777.0,776.5,0.86309724]
[1754592419409,0.85892456,776.99,776.5,0.86309724]
[1754592419605,0.85892456,776.98,776.5,0.86309724]
[1754592419908,0.85892456,776.97,776.5,0.86309724]
[1754592420104,0.85892456,776.96,776.5,0.86309724]
[1754592420307,0.976,777.11,776.5,0.86309724]
[1754592420506,0.85913727,777.1,776.5,0.86309724]
[1754592420811,0.85913727,777.09,776.5,0.86309724]
[1754592421013,0.85913727,777.08,776.5,0.86309724]
[1754592421207,0.85913727,777.07,776.5,0.86309724]
[1754592421409,0.85913727,777.06,776.5,0.86309724]
[1754592421716,0.85913727,777.05,776.5,0.86309724]
[1754592422009,0.85913727,777.04,776.5,0.86309724]
[1754592422206,0.85913727,777.03,776.5,0.86309724]
[1754592422508,0.85913727,777.02,776.56,0.86309724]
[1754592422707,0.85913727,777.01,776.56,0.86309724]
[1754592422906,0.85913727,777.0,776.56,0.86309724]
[1754592423109,0.85913727,776.99,776.56,0.86309724]
[1754592423410,0.85913727,776.98,776.56,0.86309724]
[1754592423609,0.976,777.11,776.56,0.86309724]
[1754592423807,0.85930097,777.1,776.56,0.86309724]
[1754592424012,0.85930097,777.09,776.57,0.86309724]
[1754592424214,0.85930097,777.08,776.57,0.86309724]
[1754592424415,0.85930097,777.07,776.56,0.86309724]
[1754592424615,0.85930097,777.06,776.56,0.86309724]
[1754592424814,0.85930097,777.05,776.56,0.86309724]
[1754592425015,0.85930097,777.04,776.59,0.86309724]
[1754592425216,0.85930097,777.03,776.59,0.86309724]
[1754592425411,0.85930097,777.02,776.59,0.86309724]
[1754592425712,0.86497305,777.12,776.57,0.86309724]
[1754592425917,0.85938065,777.11,776.57,0.86309724]
[1754592426213,0.85938065,777.1,776.58,0.86309724]
[1754592426418,0.85938065,777.09,776.58,0.86309724]
[1754592426613,0.85938065,777.08,776.58,0.86309724]
[1754592426918,0.85938065,777.07,776.58,0.86309724]
[1754592427117,0.85938065,777.06,776.58,0.86309724]
[1754592427316,0.85938065,777.05,776.58,0.86309724]
[1754592428218,0.85938065,777.05,776.57,0.86309724]
[1754592428917,0.85946362,777.04,776.57,0.86309724]
[1754592429120,0.85946362,777.03,776.57,0.86309724]
[1754592429320,0.85946362,777.02,776.57,0.86309724]
[1754592429518,0.85946362,777.01,776.57,0.86309724]
[1754592429720,0.85946362,777.0,776.57,0.86309724]
[1754592429917,0.85946362,776.99,776.57,0.86309724]
[1754592430118,0.85946362,776.98,776.57,0.86309724]
[1754592430321,0.85946362,776.97,776.57,0.86309724]
[1754592430621,1.129,777.06,776.57,0.86309724]
[1754592430820,0.85950523,777.05,776.57,0.86309724]
[1754592431119,0.85950523,777.04,776.57,0.86309724]
[1754592431319,0.85950523,777.03,776.57,0.86309724]
[1754592431522,0.85950523,777.02,776.57,0.86309724]
[1754592431719,0.85950523,777.01,776.57,0.86309724]
[1754592431920,0.85950523,777.0,776.56,0.86309724]
[1754592432120,0.85950523,776.99,776.56,0.86309724]
[1754592432319,0.85950523,776.98,776.57,0.86309724]
[1754592432523,1.129,777.06,776.57,0.86309724]
[1754592432724,0.85951734,777.05,776.56,0.86309724]
[1754592432919,0.85951734,777.04,776.56,0.86309724]
[1754592433124,0.85951734,777.03,776.56,0.86309724]
[1754592433321,0.85951734,777.02,776.56,0.86309724]
[1754592433624,1.129,777.06,776.56,0.86309724]
[1754592433625,0.85951734,777.01,776.56,0.86309724]
[1754592433821,0.85951734,777.0,776.56,0.86309724]
[1754592434026,0.85951734,776.99,776.56,0.86309724]
[1754592434228,0.85951734,776.98,776.56,0.86309724]
[1754592434522,1.129,777.06,776.55,0.86309724]
[1754592434723,0.85953608,777.05,776.55,0.86309724]
[1754592434925,0.85953608,777.04,776.55,0.86309724]
[1754592435123,0.85953608,777.03,776.55,0.86309724]
[1754592435322,0.85953608,777.02,776.55,0.86309724]
[1754592435523,0.85953608,777.01,776.55,0.86309724]
[1754592435723,0.85953608,777.0,776.55,0.86309724]
[1754592435923,1.129,777.06,776.55,0.86309724]
[1754592436126,0.85953571,777.05,776.55,0.86309724]
[1754592436328,0.85953571,777.04,776.39,1.1480059]
[1754592436524,1.129,777.06,776.51,0.86388982]
[1754592436723,0.85953513,777.05,776.51,0.86388982]
[1754592436926,0.85953513,777.04,776.51,0.86388982]
[1754592437124,1.129,777.06,776.51,0.86388982]
[1754592437327,0.85953782,777.05,776.52,0.86388982]
[1754592437626,1.129,777.06,776.52,0.86388982]
[1754592437827,0.85953782,777.05,776.52,0.86388982]
[1754592438030,0.85953782,777.04,776.52,0.86388982]
[1754592438227,0.85953782,777.03,776.52,0.86388982]
[1754592438432,1.129,777.06,776.52,0.86388982]
[1754592438633,0.85953959,777.05,776.52,0.86388982]
[1754592438835,0.85953959,777.04,776.52,0.86388982]
[1754592439032,0.85953959,777.03,776.52,0.86388982]
[1754592439232,1.129,777.06,776.52,0.86388982]
[1754592439533,0.85954145,777.05,776.52,0.86388982]
[1754592439735,0.85954145,777.04,776.52,0.86388982]
[1754592440032,0.85954145,777.03,776.52,0.86388982]
[1754592440236,1.129,777.06,776.52,0.86388982]
[1754592440435,0.85954332,777.05,776.52,0.86388982]
[1754592440637,0.85954332,777.04,776.52,0.86388982]
[1754592440833,0.85954332,777.03,776.52,0.86388982]
[1754592441031,1.129,777.06,776.52,0.86388982]
[1754592441232,0.85954327,777.05,776.52,0.86388982]
[1754592441534,0.85954327,777.04,776.54,0.86388982]
[1754592441737,0.85954327,777.03,776.54,0.86388982]
[1754592441934,1.129,777.06,776.54,0.86388982]
[1754592442236,0.85954514,777.05,776.54,0.86388982]
[1754592442433,0.85954514,777.04,776.54,0.86388982]
[1754592442632,0.85954514,777.03,776.54,0.86388982]
[1754592442837,1.129,777.06,776.56,0.86388982]
[1754592443037,0.85954702,777.05,776.56,0.86388982]
[1754592443236,0.85954702,777.04,776.56,0.86388982]
[1754592443433,0.85954702,777.03,776.56,0.86388982]
[1754592443733,1.129,777.06,776.56,0.86388982]
[1754592444038,0.85954748,777.05,776.56,0.86388982]
[1754592444237,0.85954748,777.04,776.56,0.86388982]
[1754592444437,0.85954748,777.03,776.64,0.86388982]
[1754592444635,0.85954748,777.02,776.64,0.86388982]
[1754592444833,0.85954748,777.01,776.64,0.86388982]
[1754592445035,0.85954748,777.0,776.64,0.86388982]
[1754592445335,0.85954748,776.99,776.64,0.86388982]
[1754592445535,1.129,777.06,776.64,0.86388982]
[1754592445836,0.85955008,777.05,776.64,0.86388982]
[1754592446038,0.85955008,777.04,776.64,0.86388982]
[1754592446240,0.85955008,777.03,776.64,0.86388982]
[1754592446435,0.85955008,777.02,776.64,0.86388982]
[1754592446639,0.85955008,777.01,776.64,0.86388982]
[1754592446936,0.85955008,777.0,776.63,0.86388982]
[1754592447239,1.129,777.06,776.64,0.86388982]
[1754592447439,0.85829946,777.05,776.64,0.86388982]
[1754592447633,0.85829946,777.04,776.64,0.86388982]
[1754592447838,0.85829946,777.03,776.64,0.86388982]
[1754592448035,0.85829946,777.02,776.64,0.86388982]
[1754592448235,0.85829946,777.01,776.71,0.86388982]
[1754592448440,0.8675551,777.23,776.71,0.86388982]
[1754592448738,0.85827597,777.22,776.72,0.86388982]
[1754592448935,0.85827597,777.21,776.72,0.86388982]
[1754592449138,0.85827597,777.2,776.72,0.86388982]
[1754592449340,0.85827597,777.19,776.82,0.86388982]
[1754592449539,0.85827597,777.18,776.82,0.86388982]
[1754592449836,0.85827597,777.17,776.82,0.86388982]
[1754592450036,0.85827597,777.16,776.82,0.86245347]
[1754592450239,0.85827597,777.15,776.81,0.86245347]
[1754592450440,0.85827597,777.14,776.81,0.86245347]
[1754592450740,0.85827597,777.13,776.81,0.86245347]
[1754592450935,0.85827597,777.12,776.81,0.86245347]
[1754592451137,0.85827597,777.11,776.81,0.86245347]
[1754592451340,0.85827597,777.1,776.79,0.86245347]
[1754592451538,0.85827597,777.09,776.79,0.86245347]
[1754592451839,0.85827597,777.08,776.79,0.86245347]
[1754592452144,0.85827597,777.07,776.79,0.86245347]
[1754592452342,0.85827597,777.06,776.78,0.86245347]
[1754592452539,0.85827597,777.05,776.78,0.86245347]
[1754592452738,0.85827597,777.04,776.78,0.86245347]
[1754592452937,0.85827597,777.03,776.78,0.86245347]
[1754592453143,0.85827597,777.02,776.77,0.86245347]
[1754592453440,1.133,777.16,776.77,0.86245347]
[1754592453641,0.85818382,777.15,776.76,0.86245347]
[1754592453838,0.85818382,777.14,776.76,0.86245347]
[1754592454040,0.85818382,777.13,776.76,0.86245347]
[1754592454244,0.85818382,777.12,776.76,0.86245347]
[1754592454544,0.85818382,777.11,776.76,0.86245347]
[1754592454744,0.85818382,777.1,776.76,0.86245347]
[1754592454944,0.85818382,777.09,776.76,0.86245347]
[1754592455239,0.85818382,777.08,776.75,0.86245347]
[1754592455443,0.85818382,777.07,776.75,0.86245347]
[1754592455644,1.133,777.16,776.75,0.86245347]
[1754592456139,0.85813154,777.15,776.75,0.86245347]
[1754592456340,0.85813154,777.14,776.75,0.86245347]
[1754592456540,0.85813154,777.13,776.74,0.86245347]
[1754592456744,0.85813154,777.12,776.74,0.86245347]
[1754592457042,1.133,777.16,776.6,1.1480059]
[1754592457043,0.85813154,777.11,776.75,0.86245347]
[1754592457243,1.133,777.16,776.74,0.86245347]
[1754592457443,0.85794205,777.15,776.72,0.86245347]
[1754592457644,0.85794205,777.14,776.72,0.86245347]
[1754592457845,0.85794205,777.13,776.72,0.86245347]
[1754592458145,1.133,777.16,776.72,0.86245347]
[1754592458346,0.85782436,777.15,776.72,0.86245347]
[1754592458545,0.85782436,777.14,776.72,0.86245347]
[1754592458740,0.85782436,777.13,776.72,0.86245347]
[1754592458946,1.133,777.16,776.72,0.86245347]
[1754592459144,0.85782436,777.15,776.72,0.86245347]
[1754592459341,0.85782436,777.14,776.72,0.86245347]
[1754592459547,1.133,777.16,776.72,0.86245347]
[1754592462146,1.133,777.16,776.7,0.86245347]
[1754592464355,1.133,777.16,776.69,0.86245347]
[1754592464653,1.133,777.16,776.71,0.86245347]
[1754592464847,1.133,777.16,776.73,0.86245347]
[1754592465253,1.133,777.16,776.41,1.7220089]
[1754592465254,1.133,777.16,776.72,0.86245347]
[1754592465954,1.133,777.16,776.73,0.86245347]
[1754592467651,1.133,777.16,776.75,0.86245347]
[1754592468155,1.133,777.16,776.59,1.1480059]
[1754592468156,1.133,777.16,776.74,0.86245347]
[1754592468456,1.133,777.16,776.76,0.86245347]
[1754592469156,1.133,777.16,776.75,0.86245347]
[1754592470659,1.133,777.16,776.72,0.86245347]
[1754592471257,1.133,777.16,776.71,0.86245347]
[1754592472561,1.133,777.16,776.72,0.86245347]
[1754592473257,1.133,777.16,776.71,0.86245347]
[1754592473457,1.133,777.16,776.72,0.86245347]
[1754592474158,1.133,777.16,776.71,0.86245347]
[1754592474358,1.133,777.16,776.72,0.86245347]
[1754592475159,1.133,777.16,776.73,0.86245347]
[1754592475363,1.133,777.16,776.74,0.86245347]
[1754592476161,1.133,777.16,776.73,0.86245347]
[1754592476359,1.133,777.16,776.75,0.86245347]
[1754592477165,1.133,777.16,776.74,0.86245347]
[1754592478165,0.22389356,777.58,776.74,0.86245347]
[1754592478462,0.85590685,777.57,776.74,0.86245347]
[1754592478661,0.85590685,777.56,776.74,0.86245347]
[1754592478860,0.85590685,777.55,776.78,0.86245347]
[1754592479064,0.85590685,777.54,776.78,0.86245347]
[1754592479265,0.85590685,777.53,776.78,0.86245347]
[1754592479465,0.85590685,777.52,776.78,0.86245347]
[1754592479765,0.85590685,777.51,776.78,0.86245347]
[1754592480064,0.85590685,777.5,776.79,0.86245347]
[1754592480260,0.85590685,777.49,776.79,0.86245347]
[1754592480665,0.85590685,777.49,776.8,0.86245347]
[1754592482168,0.85606384,777.48,776.8,0.86245347]
[1754592482366,0.85606384,777.47,776.8,0.86245347]
[1754592482568,0.805,777.5,776.8,0.86245347]
[1754592482569,0.85606384,777.46,776.8,0.86245347]
[1754592482768,0.85605667,777.45,776.8,0.86245347]
[1754592482964,0.85605667,777.44,776.8,0.86245347]
[1754592483170,0.85605667,777.43,776.8,0.86245347]
[1754592483367,0.805,777.5,776.8,0.86245347]
[1754592483368,0.85605667,777.42,776.8,0.86245347]
[1754592483572,0.85605667,777.41,776.8,0.86245347]
[1754592483770,0.85605667,777.4,776.8,0.86245347]
[1754592484071,0.85605667,777.39,776.8,0.86245347]
[1754592484268,0.85605667,777.38,776.8,0.86245347]
[1754592484568,0.85605667,777.37,776.8,0.86245347]
[1754592484768,0.85605667,777.36,776.8,0.86245347]
[1754592484972,0.85605667,777.35,776.8,0.86245347]
[1754592485169,0.85605667,777.34,776.8,0.86245347]
[1754592485369,0.85605667,777.33,776.8,0.86245347]
[1754592485568,0.85605667,777.32,776.8,0.86245347]
[1754592485769,0.85605667,777.31,776.8,0.86245347]
[1754592485968,0.85605667,777.3,776.8,0.86245347]
[1754592486167,0.805,777.5,776.8,0.86245347]
[1754592486372,0.85614271,777.49,776.8,0.86245347]
[1754592486569,0.85614271,777.48,776.8,0.86245347]
[1754592486871,0.85614271,777.47,776.8,0.86245347]
[1754592487069,0.85614271,777.46,776.8,0.86245347]
[1754592487269,0.85614271,777.45,776.8,0.86245347]
[1754592487472,0.85614271,777.44,776.8,0.86245347]
[1754592487673,0.85614271,777.43,776.8,0.86245347]
[1754592487872,0.85614271,777.42,776.8,0.86245347]
[1754592488174,0.85614271,777.41,776.8,0.86245347]
[1754592488374,0.85614271,777.4,776.8,0.86245347]
[1754592488574,0.85614271,777.39,776.8,0.86245347]
[1754592488873,0.85614271,777.38,776.8,0.86245347]
[1754592489071,0.85614271,777.37,776.8,0.86245347]
[1754592489274,0.85614271,777.36,776.8,0.86245347]
[1754592489476,0.85614271,777.35,776.8,0.86245347]
[1754592489773,0.85614271,777.34,776.8,0.86245347]
[1754592489976,0.85614271,777.33,776.8,0.86245347]
[1754592490272,0.85614271,777.32,776.8,0.86245347]
[1754592490470,0.85614271,777.31,776.8,0.86245347]
[1754592490675,0.85614271,777.3,776.8,0.86245347]
[1754592490873,0.85614271,777.29,776.8,0.86245347]
[1754592491075,0.805,777.5,776.8,0.86245347]
[1754592491272,0.8562343,777.49,776.81,0.86245347]
[1754592491476,0.8562343,777.48,776.81,0.86245347]
[1754592491677,0.85627107,777.47,776.81,0.86245347]
[1754592491876,0.85627107,777.46,776.81,0.86245347]
[1754592492072,0.85627107,777.45,776.81,0.86245347]
[1754592492271,0.85627107,777.44,776.68,1.1480059]
[1754592492476,0.85627107,777.43,776.68,1.1480059]
[1754592492772,0.805,777.5,776.68,1.1480059]
[1754592492773,0.85627107,777.42,776.68,1.1480059]
[1754592492976,0.805,777.5,776.68,1.1480059]
[1754592493173,0.85625581,777.49,776.56,1.7220089]
[1754592493375,0.85625581,777.48,776.56,1.7220089]
[1754592493575,0.85625581,777.47,776.56,1.7220089]
[1754592493774,0.85625581,777.46,776.56,1.7220089]
[1754592493978,0.85625581,777.45,776.56,1.7220089]
[1754592494172,0.85625581,777.44,776.56,1.7220089]
[1754592494378,0.85625581,777.43,776.56,1.7220089]
[1754592494576,0.85625581,777.42,776.56,1.7220089]
[1754592494778,0.22386115,777.71,776.05,2.8700149]
[1754592495075,0.85631812,777.7,776.05,2.8700149]
[1754592495273,0.85631812,777.69,776.05,2.8700149]
[1754592495577,0.85631812,777.68,776.05,2.8700149]
[1754592495878,0.85631812,777.67,775.96,0.22410623]
[1754592499581,0.85631812,777.67,776.71,0.86113565]
[1754592499981,0.78,777.68,776.71,0.86113565]
[1754592500179,0.85646831,777.67,776.71,0.86113565]
[1754592500477,0.85646831,777.66,776.47,1.1481808]
[1754592500677,0.85646831,777.65,776.47,1.1481808]
[1754592500880,0.85646831,777.64,776.47,1.1481808]
[1754592501177,0.85646831,777.63,776.22,1.7222713]
[1754592501375,0.85646831,777.62,776.22,1.7222713]
[1754592501578,0.85646831,777.61,776.22,1.7222713]
[1754592501781,0.85646831,777.6,776.22,1.7222713]
[1754592501979,0.85646831,777.59,776.22,1.7222713]
[1754592502183,0.85646831,777.58,776.22,1.7222713]
[1754592502383,0.85646831,777.57,776.22,1.7222713]
[1754592502584,0.85646831,777.56,776.22,1.7222713]
[1754592502880,0.78,777.68,776.22,1.7222713]
[1754592502881,0.85660777,777.55,776.22,1.7222713]
[1754592503084,0.85660777,777.54,776.22,1.7222713]
[1754592503384,0.85660777,777.53,776.22,1.7222713]
[1754592503584,0.85660777,777.52,776.22,1.7222713]
[1754592503785,0.85660777,777.51,776.22,1.7222713]
[1754592503985,0.85660777,777.5,776.22,1.7222713]
[1754592504283,0.85660777,777.49,776.22,1.7222713]
[1754592504484,0.85660777,777.48,776.22,1.7222713]
[1754592504685,0.85660777,777.47,776.22,1.7222713]
[1754592504881,0.85660777,777.46,776.22,1.7222713]
[1754592505081,0.85660777,777.45,776.22,1.7222713]
[1754592505280,0.85660777,777.44,776.22,1.7222713]
[1754592505482,0.85660777,777.43,776.22,1.7222713]
[1754592505685,0.85660777,777.42,776.22,1.7222713]
[1754592505885,0.85660777,777.41,776.22,1.7222713]
[1754592506184,0.85660777,777.4,776.22,1.7222713]
[1754592506381,0.85660777,777.39,776.22,1.7222713]
[1754592506584,0.78,777.68,776.22,1.7222713]
[1754592506783,0.85816274,777.67,776.22,1.7222713]
[1754592506980,0.85816274,777.66,776.22,1.7222713]
[1754592507182,0.85816274,777.65,776.22,1.7222713]
[1754592507380,0.85816274,777.64,776.22,1.7222713]
[1754592507584,0.85816274,777.63,776.22,1.7222713]
[1754592507785,0.85816274,777.62,776.22,1.7222713]
[1754592508080,0.85816274,777.61,776.22,1.7222713]
[1754592508284,0.85816274,777.6,776.22,1.7222713]
[1754592508486,0.85816274,777.59,776.22,1.7222713]
[1754592508681,0.85816274,777.58,776.22,1.7222713]
[1754592508882,0.85816274,777.57,776.22,1.7222713]
[1754592509082,0.85816274,777.56,776.22,1.7222713]
[1754592509286,0.85836925,777.55,776.22,1.7222713]
[1754592509486,0.85836925,777.54,776.22,1.7222713]
[1754592509687,0.85836925,777.53,776.22,1.7222713]
[1754592509987,0.85836925,777.52,776.22,1.7222713]
[1754592510186,0.85836925,777.51,776.22,1.7222713]
[1754592510388,0.85836925,777.5,776.22,1.7222713]
[1754592510588,0.85836925,777.49,776.22,1.7222713]
[1754592510888,0.85836925,777.48,776.96,0.86197697]
[1754592511088,0.85836925,777.47,776.96,0.86197697]
[1754592511285,0.86585836,777.61,776.96,0.86197697]
[1754592511286,0.85836925,777.46,776.96,0.86197697]
[1754592511490,0.85836925,777.45,776.96,0.86197697]
[1754592511786,0.85836925,777.45,776.81,1.1493026]
[1754592511787,0.85836925,777.44,776.95,0.86197697]
[1754592512089,0.85836925,777.43,776.97,0.86197697]
[1754592512289,0.85836925,777.42,776.97,0.86197697]
[1754592512489,0.85836925,777.41,776.97,0.86197697]
[1754592512689,0.85836925,777.4,776.97,0.86197697]
[1754592512989,0.85836925,777.39,776.97,0.86197697]
[1754592513184,0.85836925,777.38,776.97,0.86197697]
[1754592513386,0.85836925,777.37,776.97,0.86197697]
[1754592513584,0.85836925,777.36,776.97,0.86197697]
[1754592513788,0.85836925,777.35,776.97,0.86197697]
[1754592513987,0.86585836,777.59,776.97,0.86197697]
[1754592514285,0.85877944,777.58,776.97,0.86197697]
[1754592514491,0.85877944,777.57,776.97,0.86197697]
[1754592514690,0.85877944,777.56,776.97,0.86197697]
[1754592514889,0.85877944,777.55,776.97,0.86197697]
[1754592515087,0.85877944,777.54,776.97,0.86197697]
[1754592515286,0.85913251,777.53,776.97,0.86197697]
[1754592515490,0.85913251,777.52,776.97,0.86197697]
[1754592515691,0.85913251,777.51,776.97,0.86197697]
[1754592515988,0.85913251,777.5,776.97,0.86197697]
[1754592516188,0.85913251,777.49,776.97,0.86197697]
[1754592516391,0.85913251,777.48,776.97,0.86197697]
[1754592516687,0.85913251,777.47,776.97,0.86197697]
[1754592516892,0.85913251,777.46,776.97,0.86197697]
[1754592517087,0.85913251,777.45,776.97,0.86197697]
[1754592517285,0.85913251,777.44,776.97,0.86197697]
[1754592517488,0.85913251,777.43,776.97,0.86197697]
[1754592517690,0.85913251,777.42,776.97,0.86197697]
[1754592517891,0.85913251,777.41,776.97,0.86197697]
[1754592518087,0.85913251,777.4,776.97,0.86197697]
[1754592518292,0.86585836,777.59,776.97,0.86197697]
[1754592518491,0.85935615,777.58,776.97,0.86197697]
[1754592518692,0.85935615,777.57,776.97,0.86197697]
[1754592518891,0.85935625,777.56,776.98,0.86197697]
[1754592519193,0.85935625,777.55,776.98,0.86197697]
[1754592519389,0.85935625,777.54,776.98,0.86197697]
[1754592519693,0.85935625,777.53,776.98,0.86197697]
[1754592519891,0.85935625,777.52,776.98,0.86197697]
[1754592520092,0.85935625,777.51,776.97,0.86197697]
[1754592520293,0.85935625,777.5,776.98,0.86197697]
[1754592520490,0.85935625,777.49,776.98,0.86197697]
[1754592520691,0.85935625,777.48,776.98,0.86197697]
[1754592520894,0.85935625,777.47,776.98,0.86197697]
[1754592521089,0.86585836,777.58,776.98,0.86197697]
[1754592521090,0.85935625,777.46,776.98,0.86197697]
[1754592521292,0.86585836,777.58,776.99,0.86197697]
[1754592521491,0.85938607,777.57,776.98,0.86197697]
[1754592521690,0.85938607,777.56,776.98,0.86197697]
[1754592521890,0.85938607,777.55,776.98,0.86197697]
[1754592522195,0.85938607,777.54,776.99,0.86197697]
[1754592522394,0.85938607,777.53,776.99,0.86197697]